lending/lending_fUSD_20250114
["ID","MTS","AMOUNT","RATE_DAILY","PERIOD"]
[348885741,1736853041184,-1577.71,9.966e-05,2]
[348885743,1736853041193,-738.92,9.966e-05,2]
[348885745,1736853041203,-2765.51,9.966e-05,2]
[348885747,1736853041212,-2715.77,9.966e-05,2]
[348885750,1736853041223,-1332.82,9.966e-05,2]
[348885752,1736853041232,-2571.5,9.966e-05,2]
[348885774,1736853041241,-6957.9,9.966e-05,2]
[348885777,1736853041463,-1580.61,9.966e-05,2]
[348885779,1736853041473,-871.27,9.966e-05,2]
[348885781,1736853041483,-1312.25,9.966e-05,2]
[348885783,1736853041492,-1239.46,9.966e-05,2]
[348885785,1736853041503,-1156.050659,9.966e-05,2]
[348885787,1736853041513,-5926.19,9.966e-05,2]
[348885789,1736853041523,-2423.47,9.966e-05,2]
[348885792,1736853041534,-941.721364,9.966e-05,2]
[348885794,1736853041544,-2321.55,9.966e-05,2]
[348885795,1736853041553,-1275.88,9.966e-05,2]
[348885797,1736853041563,-442.41096325,9.966e-05,2]
[348885800,1736853041575,-1176.24506721,9.966e-05,2]
[348885895,1736853043468,-1611.19396954,9.966e-05,2]
[348885896,1736853043478,-3573.29,9.966e-05,2]
[348885897,1736853043488,-1322.18,9.966e-05,2]
[348885898,1736853043498,-1022.67,9.966e-05,2]
[348885899,1736853043507,-1060.25,9.966e-05,2]
[348885900,1736853043517,-660.97,9.966e-05,2]
[348885901,1736853043526,-500.0,9.966e-05,2]
[348885902,1736853043537,-1180.7,9.966e-05,2]
[348885903,1736853043546,-601.23,9.966e-05,2]
[348885904,1736853043555,-544.82,9.966e-05,2]
[348885905,1736853043565,-2045.21,9.966e-05,2]
[348885906,1736853043574,-744.43,9.966e-05,2]
[348885907,1736853043587,-500.0,9.967e-05,2]
[348885908,1736853043597,-500.0,9.967e-05,2]
[348885909,1736853043606,-504.13476415,9.967e-05,2]
[348885910,1736853043616,-500.0,9.967e-05,2]
[348885911,1736853043626,-500.0,9.967e-05,2]
[348885912,1736853043636,-500.0,9.967e-05,2]
[348885913,1736853043645,-500.0,9.967e-05,2]
[348885914,1736853043656,-500.0,9.967e-05,2]
[348885915,1736853043665,-521.7326675,9.967e-05,2]
[348885916,1736853043676,-500.0,9.967e-05,2]
[348885917,1736853043688,-500.0,9.967e-05,2]
[348885918,1736853043698,-500.0,9.967e-05,2]
[348885919,1736853043707,-504.65113571,9.967e-05,2]
[348885920,1736853043716,-500.0,9.967e-05,2]
[348885923,1736853043729,-500.0,9.967e-05,2]
[348885924,1736853043738,-500.0,9.967e-05,2]
[348885925,1736853043747,-504.93445649,9.967e-05,2]
[348885926,1736853043757,-508.93920594,9.967e-05,2]
[348885927,1736853043766,-500.0,9.967e-05,2]
[348885928,1736853043776,-503.2499925,9.967e-05,2]
[348885930,1736853043787,-500.0,9.967e-05,2]
[348885931,1736853043796,-500.0,9.967e-05,2]
[348885932,1736853043807,-228.72,9.967e-05,2]
[348885933,1736853043817,-500.0,9.967e-05,2]
[348885934,1736853043826,-500.0,9.967e-05,2]
[348885936,1736853043836,-462.48617445,9.967e-05,2]
[348885937,1736853043846,-353.18735329,9.967e-05,2]
[348885939,1736853043856,-500.0,9.967e-05,2]
[348885941,1736853043865,-500.0,9.967e-05,2]
[348885943,1736853043874,-575.16006284,9.967e-05,2]
[348885945,1736853043884,-316.0861043,9.967e-05,2]
[348885948,1736853043893,-500.0,9.967e-05,2]
[348885951,1736853043903,-500.0,9.967e-05,2]
[348885953,1736853043917,-514.47962162,9.967e-05,2]
[348885955,1736853043926,-500.0,9.967e-05,2]
[348885957,1736853043936,-500.0,9.967e-05,2]
[348885959,1736853043947,-500.0,9.967e-05,2]
[348885961,1736853043958,-500.0,9.967e-05,2]
[348885963,1736853043968,-500.0,9.967e-05,2]
[348885965,1736853043978,-500.0,9.967e-05,2]
[348885967,1736853043988,-500.0,9.967e-05,2]
[348885969,1736853043998,-2169.87,9.967e-05,2]
[348885971,1736853044008,-500.0,9.967e-05,2]
[348885973,1736853044018,-3715.68,9.967e-05,2]
[348885975,1736853044028,-3667.62,9.967e-05,2]
[348885977,1736853044039,-2114.49,9.967e-05,2]
[348885978,1736853044048,-500.0,9.967e-05,2]
[348885979,1736853044058,-1402.56,9.967e-05,2]
[348885980,1736853044068,-3436.01,9.967e-05,2]
[348885981,1736853044078,-500.0,9.967e-05,2]
[348885982,1736853044087,-632.87,9.967e-05,2]
[348885983,1736853044097,-500.0,9.967e-05,2]
[348885984,1736853044107,-1171.39,9.967e-05,2]
[348885985,1736853044117,-1115.68,9.967e-05,2]
[348885986,1736853044127,-500.0,9.967e-05,2]
[348885987,1736853044136,-500.0,9.967e-05,2]
[348885988,1736853044146,-304.91980176,9.968e-05,2]
[348885989,1736853044155,-500.0,9.968e-05,2]
[348885990,1736853044166,-500.0,9.968e-05,2]
[348885991,1736853044175,-415.44846154,9.968e-05,2]
[348885992,1736853044185,-500.0,9.968e-05,2]
[348885993,1736853044194,-500.0,9.968e-05,2]
[348885994,1736853044204,-390.60512527,9.968e-05,2]
[348885995,1736853044214,-500.0,9.968e-05,2]
[348885996,1736853044223,-500.0,9.968e-05,2]
[348885997,1736853044233,-500.0,9.968e-05,2]
[348885998,1736853044242,-631.57,9.968e-05,2]
[348885999,1736853044252,-618.92565421,9.968e-05,2]
[348886000,1736853044262,-500.0,9.968e-05,2]
[348886001,1736853044271,-626.7299245,9.968e-05,2]
[348886002,1736853044281,-156.30471537,9.968e-05,2]
[348886003,1736853044293,-500.0,9.968e-05,2]
[348886004,1736853044302,-503.5247854,9.968e-05,2]
[348886005,1736853044312,-541.62302305,9.968e-05,2]
[348886006,1736853044321,-500.0,9.968e-05,2]
[348886007,1736853044331,-500.0,9.968e-05,2]
[348886008,1736853044341,-500.0,9.968e-05,2]
[348886009,1736853044350,-550.86,9.968e-05,2]
[348886010,1736853044360,-500.0,9.968e-05,2]
[348886011,1736853044370,-504.00607258,9.968e-05,2]
[348886012,1736853044380,-502.24980842,9.968e-05,2]
[348886013,1736853044393,-503.32273647,9.968e-05,2]
[348886014,1736853044406,-500.0,9.968e-05,2]
[348886015,1736853044416,-500.0,9.968e-05,2]
[348886016,1736853044426,-842.03,9.968e-05,2]
[348886017,1736853044436,-500.0,9.968e-05,2]
[348886018,1736853044447,-500.0,9.968e-05,2]
[348886019,1736853044457,-500.0,9.968e-05,2]
[348886020,1736853044466,-500.0,9.968e-05,2]
[348886021,1736853044477,-500.0,9.968e-05,2]
[348886022,1736853044486,-627.53,9.968e-05,2]
[348886023,1736853044496,-611.99189917,9.968e-05,2]
[348886024,1736853044506,-500.0,9.968e-05,2]
[348886025,1736853044516,-821.69,9.968e-05,2]
[348886026,1736853044525,-500.0,9.968e-05,2]
[348886027,1736853044536,-504.7193388,9.968e-05,2]
[348886028,1736853044548,-500.0,9.968e-05,2]
[348886029,1736853044559,-500.0,9.968e-05,2]
[348886030,1736853044568,-500.0,9.968e-05,2]
[348886031,1736853044578,-500.0,9.968e-05,2]
[348886032,1736853044588,-500.0,9.968e-05,2]
[348886033,1736853044597,-500.0,9.968e-05,2]
[348886034,1736853044607,-500.0,9.968e-05,2]
[348886035,1736853044616,-500.0,9.968e-05,2]
[348886036,1736853044625,-500.0,9.968e-05,2]
[348886037,1736853044635,-500.0,9.968e-05,2]
[348886038,1736853044645,-500.0,9.968e-05,2]
[348886039,1736853044654,-500.0,9.968e-05,2]
[348886040,1736853044664,-500.0,9.968e-05,2]
[348886041,1736853044674,-500.0,9.968e-05,2]
[348886042,1736853044683,-500.0,9.968e-05,2]
[348886043,1736853044692,-500.0,9.968e-05,2]
[348886044,1736853044701,-500.0,9.968e-05,2]
[348886045,1736853044711,-500.0,9.968e-05,2]
[348886046,1736853044720,-500.0,9.968e-05,2]
[348886047,1736853044730,-760.31,9.968e-05,2]
[348886048,1736853044741,-500.0,9.968e-05,2]
[348886049,1736853044750,-273.0614986,9.968e-05,2]
[348886050,1736853044760,-787.52,9.968e-05,2]
[348886051,1736853044770,-500.0,9.968e-05,2]
[348886052,1736853044779,-500.0,9.968e-05,2]
[348886053,1736853044792,-687.51,9.968e-05,2]
[348886054,1736853044801,-502.56332244,9.968e-05,2]
[348886055,1736853044811,-500.0,9.968e-05,2]
[348886056,1736853044820,-500.0,9.968e-05,2]
[348886057,1736853044830,-500.0,9.968e-05,2]
[348886058,1736853044839,-500.0,9.968e-05,2]
[348886059,1736853044848,-500.0,9.968e-05,2]
[348886060,1736853044858,-500.0,9.968e-05,2]
[348886061,1736853044867,-500.0,9.968e-05,2]
[348886062,1736853044877,-500.0,9.968e-05,2]
[348886063,1736853044886,-500.0,9.968e-05,2]
[348886064,1736853044895,-500.0,9.968e-05,2]
[348886065,1736853044904,-500.0,9.968e-05,2]
[348886066,1736853044913,-500.0,9.968e-05,2]
[348886067,1736853044923,-876.21,9.968e-05,2]
[348886068,1736853044932,-500.0,9.968e-05,2]
[348886069,1736853044942,-500.0,9.968e-05,2]
[348886070,1736853044951,-500.0,9.968e-05,2]
[348886071,1736853044962,-500.0,9.968e-05,2]
[348886072,1736853044972,-500.0,9.968e-05,2]
[348886073,1736853044981,-500.0,9.968e-05,2]
[348886074,1736853044991,-500.0,9.968e-05,2]
[348886075,1736853045000,-276.50933431,9.968e-05,2]
[348886076,1736853045009,-500.0,9.968e-05,2]
[348886077,1736853045020,-500.0,9.968e-05,2]
[348886078,1736853045029,-500.0,9.968e-05,2]
[348886079,1736853045041,-500.0,9.968e-05,2]
[348886080,1736853045051,-813.4,9.968e-05,2]
[348886081,1736853045060,-1007.73,9.968e-05,2]
[348886082,1736853045069,-500.0,9.968e-05,2]
[348886083,1736853045079,-539.31365435,9.968e-05,2]
[348886084,1736853045088,-500.0,9.968e-05,2]
[348886085,1736853045097,-500.0,9.968e-05,2]
[348886086,1736853045106,-995.77,9.968e-05,2]
[348886087,1736853045116,-500.0,9.968e-05,2]
[348886088,1736853045125,-500.0,9.968e-05,2]
[348886089,1736853045134,-500.0,9.968e-05,2]
[348886090,1736853045144,-500.0,9.968e-05,2]
[348886091,1736853045153,-617.14,9.968e-05,2]
[348886092,1736853045162,-500.0,9.968e-05,2]
[348886093,1736853045172,-500.0,9.968e-05,2]
[348886094,1736853045181,-503.04256132,9.968e-05,2]
[348886095,1736853045190,-608.44830267,9.968e-05,2]
[348886096,1736853045199,-500.0,9.968e-05,2]
[348886097,1736853045209,-500.0,9.968e-05,2]
[348886098,1736853045218,-1016.08,9.968e-05,2]
[348886099,1736853045227,-292.19,9.968e-05,2]
[348886100,1736853045237,-500.0,9.968e-05,2]
[348886101,1736853045246,-500.0,9.968e-05,2]
[348886102,1736853045255,-500.0,9.968e-05,2]
[348886103,1736853045265,-500.0,9.968e-05,2]
[348886104,1736853045275,-500.0,9.968e-05,2]
[348886105,1736853045285,-500.0,9.968e-05,2]
[348886106,1736853045295,-500.0,9.968e-05,2]
[348886107,1736853045305,-500.0,9.968e-05,2]
[348886108,1736853045314,-500.0,9.968e-05,2]
[348886109,1736853045324,-500.0,9.968e-05,2]
[348886110,1736853045333,-500.0,9.968e-05,2]
[348886111,1736853045342,-503.36032441,9.968e-05,2]
[348886112,1736853045352,-500.0,9.968e-05,2]
[348886113,1736853045361,-865.99,9.968e-05,2]
[348886114,1736853045371,-500.0,9.968e-05,2]
[348886115,1736853045380,-500.0,9.968e-05,2]
[348886116,1736853045390,-500.0,9.968e-05,2]
[348886117,1736853045401,-506.68104099,9.968e-05,2]
[348886118,1736853045412,-355.77609439,9.968e-05,2]
[348886119,1736853045422,-1064.99,9.968e-05,2]
[348886120,1736853045432,-500.0,9.968e-05,2]
[348886121,1736853045441,-500.0,9.968e-05,2]
[348886122,1736853045452,-316.23078733,9.968e-05,2]
[348886123,1736853045462,-500.0,9.968e-05,2]
[348886124,1736853045471,-319.34410557,9.968e-05,2]
[348886125,1736853045481,-500.0,9.968e-05,2]
[348886126,1736853045490,-671.39,9.968e-05,2]
[348886127,1736853045499,-500.0,9.968e-05,2]
[348886128,1736853045509,-500.0,9.968e-05,2]
[348886129,1736853045519,-500.0,9.968e-05,2]
[348886130,1736853045528,-500.0,9.968e-05,2]
[348886131,1736853045539,-794.15,9.968e-05,2]
[348886132,1736853045549,-500.0,9.968e-05,2]
[348886133,1736853045559,-707.46,9.968e-05,2]
[348886134,1736853045568,-500.0,9.968e-05,2]
[348886135,1736853045578,-500.0,9.968e-05,2]
[348886136,1736853045587,-907.2,9.968e-05,2]
[348886137,1736853045597,-500.0,9.968e-05,2]
[348886138,1736853045607,-500.0,9.968e-05,2]
[348886139,1736853045616,-500.0,9.968e-05,2]
[348886140,1736853045626,-699.46,9.968e-05,2]
[348886141,1736853045636,-500.0,9.968e-05,2]
[348886142,1736853045645,-500.0,9.968e-05,2]
[348886143,1736853045655,-580.34824267,9.968e-05,2]
[348886144,1736853045665,-832.63,9.968e-05,2]
[348886145,1736853045675,-1374.84,9.968e-05,2]
[348886146,1736853045684,-500.0,9.968e-05,2]
[348886147,1736853045694,-500.0,9.968e-05,2]
[348886148,1736853045705,-500.0,9.968e-05,2]
[348886149,1736853045714,-638.70803483,9.968e-05,2]
[348886150,1736853045724,-478.99,9.968e-05,2]
[348886151,1736853045734,-723.58,9.968e-05,2]
[348886152,1736853045743,-500.0,9.968e-05,2]
[348886153,1736853045753,-984.24,9.968e-05,2]
[348886154,1736853045763,-872.8,9.968e-05,2]
[348886155,1736853045773,-500.0,9.968e-05,2]
[348886156,1736853045785,-500.0,9.968e-05,2]
[348886157,1736853045795,-803.78,9.968e-05,2]
[348886158,1736853045805,-500.0,9.968e-05,2]
[348886159,1736853045815,-500.0,9.968e-05,2]
[348886160,1736853045824,-503.27534303,9.968e-05,2]
[348886161,1736853045835,-505.34451888,9.968e-05,2]
[348886162,1736853045845,-500.0,9.968e-05,2]
[348886163,1736853045855,-500.0,9.968e-05,2]
[348886164,1736853045864,-504.40494033,9.968e-05,2]
[348886165,1736853045874,-4498.41,9.968e-05,2]
[348886166,1736853045884,-500.0,9.968e-05,2]
[348886167,1736853045894,-500.0,9.968e-05,2]
[348886168,1736853045903,-500.0,9.968e-05,2]
[348886169,1736853045913,-681.44,9.968e-05,2]
[348886170,1736853045923,-500.0,9.968e-05,2]
[348886171,1736853045933,-500.0,9.968e-05,2]
[348886172,1736853045943,-500.0,9.968e-05,2]
[348886173,1736853045953,-500.0,9.968e-05,2]
[348886174,1736853045962,-350.67536552,9.968e-05,2]
[348886175,1736853045973,-500.0,9.968e-05,2]
[348886176,1736853045982,-500.0,9.968e-05,2]
[348886177,1736853045992,-2792.46,9.968e-05,2]
[348886178,1736853046002,-500.0,9.968e-05,2]
[348886179,1736853046012,-500.0,9.968e-05,2]
[348886180,1736853046021,-500.0,9.968e-05,2]
[348886181,1736853046031,-500.0,9.968e-05,2]
[348886182,1736853046042,-200.71118932,9.968e-05,2]
[348886183,1736853046051,-1586.22,9.969e-05,2]
[348886184,1736853046069,-500.0,9.969e-05,2]
[348886185,1736853046082,-1508.2,9.969e-05,2]
[348886186,1736853046092,-1933.46,9.969e-05,2]
[348886187,1736853046102,-1448.06,9.969e-05,2]
[348886188,1736853046111,-3893.58,9.969e-05,2]
[348886189,1736853046121,-1622.2,9.969e-05,2]
[348886190,1736853046131,-3004.71,9.969e-05,2]
[348886191,1736853046141,-1424.93,9.969e-05,2]
[348886192,1736853046150,-1579.48,9.969e-05,2]
[348886193,1736853046160,-500.0,9.969e-05,2]
[348886194,1736853046170,-818.56,9.969e-05,2]
[348886195,1736853046179,-2009.58,9.969e-05,2]
[348886196,1736853046188,-891.21,9.969e-05,2]
[348886197,1736853046199,-947.52,9.969e-05,2]
[348886198,1736853046208,-1621.98,9.97e-05,2]
[348886199,1736853046219,-1362.11,9.97e-05,2]
[348886200,1736853046228,-1916.99,9.97e-05,2]
[348886201,1736853046237,-3379.25,9.97e-05,2]
[348886202,1736853046247,-8075.57,9.97e-05,2]
[348886203,1736853046257,-2848.45,9.97e-05,2]
[348886204,1736853046266,-929.96,9.97e-05,2]
[348886205,1736853046276,-697.11,9.97e-05,2]
[348886206,1736853046286,-500.0,9.97e-05,2]
[348886207,1736853046295,-2419.42,9.97e-05,2]
[348886208,1736853046305,-1007.36,9.97e-05,2]
[348886209,1736853046315,-500.0,9.97e-05,2]
[348886210,1736853046325,-834.78,9.97e-05,2]
[348886211,1736853046335,-1384.34,9.97e-05,2]
[348886212,1736853046344,-1768.65,9.97e-05,2]
[348886213,1736853046354,-500.0,9.97e-05,2]
[348886214,1736853046364,-1000.0,9.97e-05,2]
[348886215,1736853046373,-1704.16,9.971e-05,2]
[348886216,1736853046383,-943.47,9.971e-05,2]
[348886217,1736853046393,-500.0,9.971e-05,2]
[348886218,1736853046406,-2412.63,9.971e-05,2]
[348886219,1736853046416,-2232.04,9.971e-05,2]
[348886220,1736853046426,-372.93707595,9.972e-05,2]
[348886221,1736853046436,-987.0,9.973e-05,2]
[348886222,1736853046446,-164.22453056,9.973e-05,2]
[348886223,1736853046456,-177.61895093,9.973e-05,2]
[348886224,1736853046465,-159.8722014,9.973e-05,2]
[348886225,1736853046475,-159.87299562,9.973e-05,2]
[348886226,1736853046485,-166.17251267,9.973e-05,2]
[348886227,1736853046495,-151.89536857,9.973e-05,2]
[348886228,1736853046504,-500.0,9.973e-05,2]
[348886229,1736853046514,-159.87217515,9.973e-05,2]
[348886230,1736853046523,-500.0,9.973e-05,2]
[348886231,1736853046533,-500.0,9.973e-05,2]
[348886232,1736853046543,-414.61436255,9.973e-05,2]
[348886233,1736853046554,-151.87859133,9.973e-05,2]
[348886234,1736853046564,-159.88480622,9.973e-05,2]
[348886235,1736853046574,-159.05611515,9.973e-05,2]
[348886236,1736853046588,-260.61216013,9.973e-05,2]
[348886237,1736853046598,-161.78673151,9.973e-05,2]
[348886238,1736853046608,-160.01746146,9.973e-05,2]
[348886239,1736853046617,-200.0,9.973e-05,2]
[348886240,1736853046627,-8208.205171,9.973e-05,2]
[348886241,1736853046637,-8208.205171,9.974e-05,2]
[348886242,1736853046646,-18635.97811116,9.974e-05,2]
[348886243,1736853046656,-367891.23799022,9.974e-05,2]
[348886244,1736853046666,-937.00489151,9.975e-05,2]
[348886245,1736853046677,-16749.05971805,9.975e-05,2]
[348886246,1736853047784,-290.00573009,9.898e-05,2]
[348886247,1736853047831,-927.68915845,9.898e-05,2]
[348886248,1736853047843,-500.0,9.968e-05,2]
[348886249,1736853047852,-5914.83368148,9.975e-05,2]
[348886263,1736853554016,1000.0,0.00013698,30]
[348886264,1736853554315,467.95619037,0.00013698,30]
[348886267,1736853657766,2842.89,8.219e-05,2]
[348886275,1736853942471,2500.0,0.00023,120]
[348886276,1736853972432,1000.0,8e-05,2]
[348886277,1736853990581,2000.0,0.00023,120]
[348886283,1736854074734,892.11,0.00023,120]
[348886326,1736854232850,-800.71259985,8.598e-05,2]
[348886327,1736854232890,-143.62740015,8.598e-05,2]
[348886328,1736854232904,-567.8475999,8.628e-05,2]
[348886329,1736854232917,-26.7624001,8.628e-05,2]
[348886330,1736854232927,-200.0,8.628e-05,2]
[348886331,1736854232937,-489.87,8.641e-05,2]
[348886332,1736854232948,-250.0,8.721e-05,2]
[348886333,1736854232958,-231.7675999,8.721e-05,2]
[348886334,1736854232970,-275.8124001,8.721e-05,2]
[348886335,1736854232981,-653.8319399,8.752e-05,2]
[348886336,1736854233017,-286.8280601,8.752e-05,2]
[348886337,1736854233027,-250.0,8.754e-05,2]
[348886338,1736854233037,-1500.0,8.754e-05,2]
[348886339,1736854233046,-1000.0,8.772e-05,2]
[348886340,1736854233056,-410.66,8.78e-05,2]
[348886341,1736854233067,-300.0,8.829e-05,2]
[348886342,1736854233076,-430.3,8.83e-05,2]
[348886343,1736854233085,-250.0,8.869e-05,2]
[348886344,1736854233095,-217.34,8.886e-05,2]
[348886345,1736854233105,-168.65,8.942e-05,2]
[348886346,1736854233115,-871.4,8.949e-05,2]
[348886347,1736854233125,-1409.78,8.963e-05,2]
[348886348,1736854233135,-150.0,9e-05,2]
[348886349,1736854233145,-1072.33288628,9e-05,2]
[348886350,1736854233155,-1100.0,9.3e-05,3]
[348886351,1736854233164,-2200.0,9.4e-05,3]
[348886352,1736854233174,-241.26,9.452e-05,2]
[348886353,1736854233183,-150.0,9.452e-05,2]
[348886354,1736854233193,-150.0,9.452e-05,2]
[348886355,1736854233203,-3300.0,9.5e-05,3]
[348886356,1736854233212,-4400.0,9.6e-05,3]
[348886357,1736854233221,-168.65,9.68e-05,2]
[348886358,1736854233231,-5500.0,9.7e-05,3]
[348886359,1736854233241,-420.0,9.712e-05,2]
[348886360,1736854233250,-1100.0,9.8e-05,3]
[348886361,1736854233260,-150.0,9.8e-05,2]
[348886362,1736854233270,-507.58,9.811e-05,2]
[348886363,1736854233279,-1000.0,9.869e-05,2]
[348886364,1736854233288,-448.1573,9.875e-05,2]
[348886365,1736854233298,-2569.836,9.875e-05,2]
[348886366,1736854233307,-4487.0783,9.889e-05,2]
[348886368,1736854233316,-1365.56,9.899e-05,2]
[348886369,1736854233326,-92.69032551,9.899e-05,2]
[348886371,1736854233338,-1008.7217319,9.899e-05,2]
[348886373,1736854233349,-412.25794259,9.899e-05,2]
[348886375,1736854233359,-500.0,9.899e-05,2]
[348886376,1736854233368,-784.46,9.899e-05,2]
[348886378,1736854233381,-1925.84,9.899e-05,2]
[348886380,1736854233391,-854.07,9.899e-05,2]
[348886382,1736854233401,-908.04,9.899e-05,2]
[348886384,1736854233411,-913.17,9.899e-05,2]
[348886386,1736854233421,-500.0,9.899e-05,2]
[348886387,1736854233431,-1261.98,9.899e-05,2]
[348886388,1736854233440,-247.2885216,9.899e-05,2]
[348886389,1736854233480,-365.2714784,9.899e-05,2]
[348886390,1736854233490,-1276.25,9.899e-05,2]
[348886391,1736854233500,-62.12980991,9.899e-05,2]
[348886392,1736854233518,-916.65019009,9.899e-05,2]
[348886393,1736854233527,-1135.72566631,9.899e-05,2]
[348886394,1736854233539,-418.67433369,9.899e-05,2]
[348886395,1736854233549,-437.36823699,9.899e-05,2]
[348886396,1736854233594,-867.99176301,9.899e-05,2]
[348886397,1736854233603,-1837.12,9.899e-05,2]
[348886398,1736854233613,-3238.45,9.899e-05,2]
[348886399,1736854233622,-4801.73080615,9.899e-05,2]
[348886400,1736854233634,-321.56980465,9.899e-05,2]
[348886408,1736854238316,-653.67901261,9.899e-05,2]
[348886410,1736854238355,-641.685354,9.899e-05,2]
[348886411,1736854238367,-1320.42502259,9.899e-05,2]
[348886412,1736854238378,-891.22,9.899e-05,2]
[348886413,1736854238390,-1633.15,9.899e-05,2]
[348886414,1736854238400,-1014.74574045,9.899e-05,2]
[348886415,1736854238410,-2664.25,9.899e-05,2]
[348886416,1736854238419,-1100.0,9.9e-05,3]
[348886417,1736854238428,-178.024718,9.915e-05,2]
[348886418,1736854238437,-177.894438,9.915e-05,2]
[348886419,1736854238446,-1014.7457404,9.919e-05,2]
[348886420,1736854238455,-1014.7457404,9.939e-05,2]
[348886421,1736854238463,-2907.85429119,9.94e-05,2]
[348886422,1736854238473,-1014.7457404,9.96e-05,2]
[348886423,1736854238482,-500.0,9.966e-05,2]
[348886424,1736854238491,-500.0,9.966e-05,2]
[348886425,1736854238500,-500.0,9.966e-05,2]
[348886426,1736854238509,-500.0,9.966e-05,2]
[348886427,1736854238518,-500.0,9.966e-05,2]
[348886428,1736854238527,-500.0,9.966e-05,2]
[348886429,1736854238537,-500.0,9.966e-05,2]
[348886430,1736854238549,-500.0,9.966e-05,2]
[348886431,1736854238559,-500.0,9.966e-05,2]
[348886432,1736854238569,-500.0,9.966e-05,2]
[348886433,1736854238578,-500.0,9.966e-05,2]
[348886434,1736854238588,-748.88,9.966e-05,2]
[348886435,1736854238598,-500.0,9.966e-05,2]
[348886436,1736854238607,-500.0,9.966e-05,2]
[348886437,1736854238616,-836.92,9.966e-05,2]
[348886438,1736854238626,-500.0,9.966e-05,2]
[348886439,1736854238636,-500.0,9.966e-05,2]
[348886440,1736854238645,-607.87,9.966e-05,2]
[348886441,1736854238655,-668.94,9.966e-05,2]
[348886442,1736854238664,-500.0,9.966e-05,2]
[348886443,1736854238673,-511.02,9.966e-05,2]
[348886444,1736854238684,-500.0,9.966e-05,2]
[348886445,1736854238694,-500.0,9.966e-05,2]
[348886446,1736854238704,-500.0,9.966e-05,2]
[348886447,1736854238713,-500.0,9.966e-05,2]
[348886448,1736854238722,-500.0,9.966e-05,2]
[348886449,1736854238731,-500.0,9.966e-05,2]
[348886450,1736854238741,-500.0,9.966e-05,2]
[348886451,1736854238751,-500.0,9.966e-05,2]
[348886452,1736854238760,-500.0,9.966e-05,2]
[348886453,1736854238770,-500.0,9.966e-05,2]
[348886454,1736854238780,-500.0,9.966e-05,2]
[348886455,1736854238791,-584.97,9.966e-05,2]
[348886456,1736854238800,-756.86,9.966e-05,2]
[348886457,1736854238810,-733.01,9.966e-05,2]
[348886458,1736854238820,-500.0,9.966e-05,2]
[348886459,1736854238829,-613.58590833,9.966e-05,2]
[348886460,1736854238839,-500.0,9.966e-05,2]
[348886461,1736854238848,-500.0,9.966e-05,2]
[348886462,1736854238857,-189.09083855,9.966e-05,2]
[348886464,1736854238867,-500.0,9.966e-05,2]
[348886465,1736854238877,-500.0,9.966e-05,2]
[348886466,1736854238888,-500.0,9.966e-05,2]
[348886467,1736854238898,-500.0,9.966e-05,2]
[348886468,1736854238910,-950.81,9.966e-05,2]
[348886469,1736854238920,-522.76,9.966e-05,2]
[348886470,1736854238930,-1413.43,9.966e-05,2]
[348886471,1736854238940,-500.0,9.966e-05,2]
[348886472,1736854238951,-1002.2,9.966e-05,2]
[348886474,1736854238960,-971.48,9.966e-05,2]
[348886476,1736854238969,-1073.42,9.966e-05,2]
[348886478,1736854238980,-500.0,9.966e-05,2]
[348886480,1736854238989,-500.0,9.966e-05,2]
[348886482,1736854238999,-500.0,9.966e-05,2]
[348886484,1736854239009,-500.0,9.966e-05,2]
[348886486,1736854239018,-730.07,9.966e-05,2]
[348886487,1736854239027,-500.0,9.966e-05,2]
[348886488,1736854239036,-380.88182169,9.966e-05,2]
[348886489,1736854239063,-119.11817831,9.966e-05,2]
[348886490,1736854239072,-776.53,9.966e-05,2]
[348886491,1736854239082,-500.0,9.966e-05,2]
[348886492,1736854239092,-1520.12,9.966e-05,2]
[348886493,1736854239101,-638.4,9.966e-05,2]
[348886494,1736854239110,-500.0,9.966e-05,2]